[Event "Romanian-ch Youth Open U10 2024"]
[Site "Eforie Nord"]
[Date "2024.04.17"]
[Round "7.1"]
[White "Rosca, Dragos-Ioan"]
[Black "Larion, Iustin"]
[Result "0-1"]
[ECO "B13"]
[WhiteElo "1557"]
[BlackElo "1743"]
[Annotator "NA RC COMBH"]
[PlyCount "64"]
[EventDate "2024.04.10"]
[EventType "swiss"]
[EventCountry "ROU"]
[SourceTitle "playchess.com"]
[Source "ChessBase"]
[SourceQuality "1"]
[TimeControl "5400+30"]

1. e4 {[%emt 0:00:01]} c6 {[%emt 0:00:05]} 2. d4 {[%emt 0:00:05]} d5 {[%emt 0:00:05]} 3. exd5 {[%emt 0:00:04]} cxd5 {[%emt 0:00:06]} 4. Bd3 {[%emt 0:00:08]} Nc6 {[%emt 0:00:12]} 5. c3 {[%emt 0:00:06]} Qc7 {[%emt 0:00:05]} 6. Qf3 {[%emt 0:00:37]} Nf6 {[%emt 0:11:19]} 7. Bf4 {[%emt 0:00:36]} Qd8 {[%emt 0:08:19]} 8. Qe2 {[%emt 0:01:35]} Bg4 {[%emt 0:01:05]} 9. Nf3 {[%emt 0:00:12]} e6 {[%emt 0:00:56]} 10. O-O {[%emt 0:00:36]} Bd6 {[%emt 0:01:49]} 11. Bxd6 {[%emt 0:00:36]} Qxd6 {[%emt 0:00:02]} 12. Nbd2 {[%emt 0:05:09]} O-O {[%emt 0:04:28]} 13. h3 {[%emt 0:00:13]} Bh5 {[%emt 0:00:44]} 14. g4 {[%emt 0:00:58]} Bg6 {[%emt 0:00:07]} 15. Bxg6 {[%emt 0:00:04]} hxg6 {[%emt 0:03:10]} 16. Ne5 {[%emt 0:00:09]} b5 {[%emt 0:14:37]} 17. f4 {[%emt 0:21:40]} b4 {[%emt 0:05:37]} 18. h4 {[%emt 0:17:30]} bxc3 {[%emt 0:02:53]} 19. bxc3 {[%emt 0:00:11]} Ne7 {[%emt 0:03:54]} 20. Rf3 {[%emt 0:10:45]} Rac8 {[%emt 0:10:09]} 21. Qd3 {[%emt 0:39:45]} Qa3 22. Re1 Rc7 23. h5 gxh5 24. gxh5 Rfc8 25. Nb1 Qb2 26. Re2 Qb6 27. Rh2 Nf5 28. h6 g6 29. h7+ Kh8 30. Kg2 {[%emt 0:00:00]} Ne4 {[%emt 0:25:10]} 31. Qc2 {[%emt 0:00:00]} Rb8 {[%emt 0:00:30]} 32. Rh1 {[%emt 0:00:00]} Qb2 {[%emt 0:00:30]} 0-1

[Event "Romanian-ch Youth Open U10 2024"]
[Site "Eforie Nord"]
[Date "2024.04.17"]
[Round "7.2"]
[White "Mistrekov, Dobrynia"]
[Black "Cazacu, Iustin-Nicolas"]
[Result "1-0"]
[ECO "B34"]
[WhiteElo "1562"]
[BlackElo "1857"]
[Annotator "NA RC COMBH"]
[PlyCount "85"]
[EventDate "2024.04.10"]
[EventType "swiss"]
[EventCountry "ROU"]
[SourceTitle "playchess.com"]
[Source "ChessBase"]
[SourceQuality "1"]
[TimeControl "5400+30"]

1. e4 {[%emt 0:00:11]} c5 {[%emt 0:00:50]} 2. Nf3 {[%emt 0:01:33]} Nc6 {[%emt 0:00:36]} 3. Nc3 {[%emt 0:00:49]} g6 {[%emt 0:01:33]} 4. d4 {[%emt 0:02:04]} cxd4 {[%emt 0:00:35]} 5. Nxd4 {[%emt 0:00:28]} Bg7 {[%emt 0:01:38]} 6. Be3 {[%emt 0:00:49]} Nf6 {[%emt 0:00:35]} 7. Be2 {[%emt 0:00:19]} O-O {[%emt 0:02:42]} 8. O-O {[%emt 0:03:26]} d5 {[%emt 0:02:05]} 9. exd5 {[%emt 0:12:45]} Nxd5 {[%emt 0:00:26]} 10. Nxd5 {[%emt 0:01:19]} Nxd4 {[%emt 0:02:17]} 11. Bc4 {[%emt 0:03:43]} e5 {[%emt 0:07:14]} 12. c3 {[%emt 0:02:45]} Ne6 {[%emt 0:05:03]} 13. Qb3 {[%emt 0:03:11]} Qh4 {[%emt 0:05:35]} 14. Rad1 {[%emt 0:01:54]} Nf4 {[%emt 0:32:31]} 15. Bxf4 {[%emt 0:01:04]} exf4 {[%emt 0:00:13]} 16. Rfe1 {[%emt 0:00:40]} f3 {[%emt 0:03:03]} 17. g3 {[%emt 0:01:02]} Qh3 {[%emt 0:01:16]} 18. Nf4 {[%emt 0:00:25]} Qf5 {[%emt 0:03:34]} 19. Nd5 {[%emt 0:02:47]} Qh3 {[%emt 0:01:15]} 20. Bf1 {[%emt 0:02:08]} Qh5 {[%emt 0:00:50]} 21. Nf4 {[%emt 0:01:27]} Qc5 {[%emt 0:01:12]} 22. Bc4 {[%emt 0:01:35]} Rb8 {[%emt 0:03:16]} 23. Bd5 {[%emt 0:01:33]} Bg4 {[%emt 0:01:31]} 24. h3 {[%emt 0:00:52]} Bf5 {[%emt 0:01:13]} 25. Bxf3 {[%emt 0:01:01]} g5 {[%emt 0:01:11]} 26. Nh5 {[%emt 0:02:59]} Be6 {[%emt 0:02:48]} 27. Qc2 {[%emt 0:01:38]} Rfd8 {[%emt 0:03:27]} 28. Bg4 {[%emt 0:05:54]} Rxd1 {[%emt 0:02:48]} 29. Rxd1 {[%emt 0:00:30]} Bxa2 {[%emt 0:00:56]} 30. Nxg7 {[%emt 0:01:01]} Kxg7 {[%emt 0:00:18]} 31. b3 {[%emt 0:00:23]} Qa3 {[%emt 0:00:34]} 32. Qf5 {[%emt 0:00:43]} Qe7 {[%emt 0:03:05]} 33. Qc2 {[%emt 0:03:42]} Qa3 {[%emt 0:00:14]} 34. Qd2 {[%emt 0:01:10]} Bxb3 {[%emt 0:01:48]} 35. Qxg5+ {[%emt 0:00:09]} Kf8 {[%emt 0:00:56]} 36. Qh6+ {[%emt 0:01:02]} Ke7 {[%emt 0:00:14]} 37. Rd7+ {[%emt 0:00:18]} Ke8 {[%emt 0:00:36]} 38. Qe3+ {[%emt 0:00:11]} Kf8 {[%emt 0:00:31]} 39. Qh6+ {[%emt 0:00:25]} Ke8 {[%emt 0:00:05]} 40. Qxh7 {[%emt 0:00:24]} Rd8 {[%emt 0:04:52]} 41. Qh8+ {[%emt 0:00:16]} Qf8 {[%emt 0:00:07]} 42. Rxd8+ Kxd8 {[%emt 0:00:01]} 43. Qxf8+ {[%emt 0:00:20]} 1-0

[Event "Romanian-ch Youth Open U10 2024"]
[Site "Eforie Nord"]
[Date "2024.04.17"]
[Round "7.3"]
[White "Kovacs, Balazs"]
[Black "Ionita, Mario-Alexandru"]
[Result "1-0"]
[ECO "C02"]
[WhiteElo "1866"]
[BlackElo "1487"]
[Annotator "NA RC COMBH"]
[PlyCount "51"]
[EventDate "2024.04.10"]
[EventType "swiss"]
[EventCountry "ROU"]
[SourceTitle "playchess.com"]
[Source "ChessBase"]
[SourceQuality "1"]
[TimeControl "5400+30"]

1. e4 {[%emt 0:00:04]} e6 {[%emt 0:03:23]} 2. d4 {[%emt 0:00:06]} d5 {[%emt 0:02:12]} 3. e5 {[%emt 0:00:08]} c5 {[%emt 0:01:52]} 4. c3 {[%emt 0:00:06]} Nc6 {[%emt 0:02:00]} 5. Nf3 {[%emt 0:00:24]} Qb6 {[%emt 0:03:10]} 6. a3 {[%emt 0:03:21]} Bd7 {[%emt 0:03:04]} 7. b4 {[%emt 1:29:51]} cxd4 {[%emt 0:02:40]} 8. cxd4 {[%emt 0:00:00]} Nge7 {[%emt 0:04:28]} 9. Nc3 {[%emt 0:00:00]} Nf5 {[%emt 0:01:20]} 10. Na4 {[%emt 0:00:00]} Qd8 {[%emt 0:01:01]} 11. Bb2 {[%emt 0:00:00]} Be7 {[%emt 0:01:53]} 12. Nc5 {[%emt 0:00:00]} b6 {[%emt 0:04:35]} 13. Nxd7 {[%emt 0:00:00]} Qxd7 {[%emt 0:01:22]} 14. Bb5 {[%emt 0:00:00]} Bd8 {[%emt 0:03:22]} 15. Rc1 {[%emt 0:00:00]} Nfe7 {[%emt 0:01:32]} 16. O-O {[%emt 0:00:00]} O-O {[%emt 0:02:05]} 17. Rc3 {[%emt 0:00:00]} Qb7 {[%emt 0:02:32]} 18. Qa4 {[%emt 0:00:00]} Nb8 {[%emt 0:00:49]} 19. Rfc1 {[%emt 0:00:00]} a6 {[%emt 0:01:26]} 20. Be2 {[%emt 0:00:00]} b5 {[%emt 0:01:17]} 21. Qc2 {[%emt 0:00:00]} Bb6 {[%emt 0:01:01]} 22. Ng5 {[%emt 0:00:00]} Ng6 {[%emt 0:00:58]} 23. Rh3 {[%emt 0:00:00]} Bd8 {[%emt 0:07:33]} 24. Nxh7 {[%emt 0:00:00]} Nf4 {[%emt 0:01:28]} 25. Nf6+ {[%emt 0:00:00]} gxf6 {[%emt 0:00:28]} 26. Qh7# {[%emt 0:00:00]} 1-0

[Event "Romanian-ch Youth Open U10 2024"]
[Site "Eforie Nord"]
[Date "2024.04.17"]
[Round "7.4"]
[White "Bostina, Vladimir-Ioan"]
[Black "Pasca, Alexandru-Daniel"]
[Result "1/2-1/2"]
[ECO "B33"]
[WhiteElo "1579"]
[BlackElo "1623"]
[Annotator "NA RC COMBH"]
[PlyCount "153"]
[EventDate "2024.04.10"]
[EventType "swiss"]
[EventCountry "ROU"]
[SourceTitle "playchess.com"]
[Source "ChessBase"]
[SourceQuality "1"]
[TimeControl "5400+30"]

1. e4 {[%emt 0:00:04]} c5 {[%emt 0:00:04]} 2. Nf3 {[%emt 0:00:04]} Nc6 {[%emt 0:00:04]} 3. d4 {[%emt 0:00:05]} cxd4 {[%emt 0:00:03]} 4. Nxd4 {[%emt 0:00:02]} Nf6 {[%emt 0:00:22]} 5. Nc3 {[%emt 0:00:09]} e5 {[%emt 0:00:05]} 6. Ndb5 {[%emt 0:00:04]} d6 {[%emt 0:00:03]} 7. Bg5 {[%emt 0:00:05]} a6 {[%emt 0:00:05]} 8. Na3 {[%emt 0:00:05]} b5 {[%emt 0:00:02]} 9. Nd5 {[%emt 0:00:05]} Be7 {[%emt 0:00:03]} 10. Bxf6 {[%emt 0:00:05]} Bxf6 {[%emt 0:00:04]} 11. c3 {[%emt 0:00:06]} O-O {[%emt 0:00:09]} 12. Nc2 {[%emt 0:00:34]} Rb8 {[%emt 0:00:07]} 13. Be2 {[%emt 0:00:08]} Bg5 {[%emt 0:00:09]} 14. O-O {[%emt 0:00:38]} Be6 {[%emt 0:00:53]} 15. Ncb4 {[%emt 0:00:08]} Nxb4 {[%emt 0:00:38]} 16. Nxb4 {[%emt 0:00:37]} Qb6 {[%emt 0:01:42]} 17. Nd5 {[%emt 0:02:24]} Qb7 {[%emt 0:01:31]} 18. a3 {[%emt 0:37:19]} Bxd5 {[%emt 0:03:17]} 19. Qxd5 {[%emt 0:01:06]} Qxd5 {[%emt 0:00:03]} 20. exd5 {[%emt 0:00:09]} f5 {[%emt 0:00:21]} 21. Rfb1 {[%emt 0:08:41]} Rfc8 {[%emt 0:09:26]} 22. g3 {[%emt 0:14:36]} Kf8 {[%emt 0:00:31]} 23. h4 {[%emt 0:04:23]} Bf6 {[%emt 0:08:43]} 24. Kf1 {[%emt 0:07:24]} g6 {[%emt 0:01:37]} 25. a4 {[%emt 0:02:37]} Rc5 {[%emt 0:16:38]} 26. axb5 {[%emt 0:00:57]} axb5 {[%emt 0:00:08]} 27. Rd1 {[%emt 0:05:00]} e4 {[%emt 0:02:33]} 28. Ra6 {[%emt 0:00:52]} Be5 {[%emt 0:04:27]} 29. Rc6 {[%emt 0:00:59]} Ke7 {[%emt 0:00:25]} 30. Ra6 {[%emt 0:08:42]} Rc7 {[%emt 0:07:17]} 31. Rda1 {[%emt 0:01:25]} b4 {[%emt 0:01:40]} 32. Ra7 {[%emt 0:01:58]} Rbb7 {[%emt 0:03:22]} 33. Rxb7 {[%emt 0:00:41]} Rxb7 {[%emt 0:00:04]} 34. cxb4 {[%emt 0:00:08]} Bxb2 {[%emt 0:01:04]} 35. Ra4 {[%emt 0:00:06]} Bd4 {[%emt 0:00:42]} 36. b5 {[%emt 0:00:23]} Bc5 {[%emt 0:01:52]} 37. Ra8 {[%emt 0:04:32]} Kf6 {[%emt 0:00:41]} 38. Re8 {[%emt 0:00:59]} h6 {[%emt 0:02:20]} 39. Rh8 {[%emt 0:00:51]} Bd4 {[%emt 0:01:34]} 40. Re8 {[%emt 0:00:28]} Bc5 {[%emt 0:00:13]} 41. Rh8 {[%emt 0:00:12]} Kg7 {[%emt 0:03:36]} 42. Re8 {[%emt 0:00:40]} Bd4 {[%emt 0:00:47]} 43. Rd8 {[%emt 0:00:35]} Bc5 {[%emt 0:01:50]} 44. Re8 {[%emt 0:00:12]} Kf7 {[%emt 0:01:37]} 45. Rh8 {[%emt 0:00:10]} Bd4 {[%emt 0:00:26]} 46. Rd8 {[%emt 0:00:34]} Rb6 {[%emt 0:01:02]} 47. Rd7+ {[%emt 0:01:07]} Kf6 {[%emt 0:00:25]} 48. Rh7 {[%emt 0:00:27]} h5 {[%emt 0:02:29]} 49. Bc4 {[%emt 0:00:48]} Rb8 {[%emt 0:01:45]} 50. Rd7 {[%emt 0:00:27]} Bc5 {[%emt 0:00:22]} 51. Rh7 {[%emt 0:00:31]} Ra8 {[%emt 0:00:17]} 52. Rb7 {[%emt 0:00:27]} Ra1+ {[%emt 0:02:36]} 53. Kg2 {[%emt 0:00:36]} Rb1 {[%emt 0:00:22]} 54. Be2 {[%emt 0:00:23]} Rb2 {[%emt 0:01:51]} 55. Kf1 {[%emt 0:00:07]} e3 {[%emt 0:03:51]} 56. fxe3 {[%emt 0:00:36]} Bxe3 {[%emt 0:00:53]} 57. Rb8 {[%emt 0:00:53]} Bd4 {[%emt 0:01:58]} 58. Re8 {[%emt 0:00:21]} Bc5 {[%emt 0:02:09]} 59. Re6+ {[%emt 0:00:42]} Kf7 {[%emt 0:00:14]} 60. Ke1 {[%emt 0:00:29]} Rb3 {[%emt 0:00:36]} 61. Bc4 {[%emt 0:00:30]} Rb4 {[%emt 0:03:06]} 62. Bf1 {[%emt 0:00:31]} Rb2 {[%emt 0:02:37]} 63. Re2 {[%emt 0:00:26]} Rxb5 {[%emt 0:01:31]} 64. Re7+ {[%emt 0:00:13]} Kxe7 {[%emt 0:00:06]} 65. Bxb5 {[%emt 0:00:06]} Kf6 {[%emt 0:00:35]} 66. Be8 {[%emt 0:00:32]} f4 {[%emt 0:02:54]} 67. gxf4 {[%emt 0:01:04]} Be3 {[%emt 0:00:12]} 68. Ke2 {[%emt 0:00:10]} Bxf4 {[%emt 0:00:12]} 69. Kf3 {[%emt 0:00:06]} Bd2 {[%emt 0:00:15]} 70. Kg3 {[%emt 0:00:39]} Be1+ {[%emt 0:00:52]} 71. Kh3 {[%emt 0:00:05]} Bf2 {[%emt 0:01:39]} 72. Bc6 {[%emt 0:00:23]} g5 {[%emt 0:01:20]} 73. hxg5+ {[%emt 0:00:08]} Kxg5 {[%emt 0:00:03]} 74. Bb7 {[%emt 0:00:16]} h4 {[%emt 0:00:14]} 75. Bc6 {[%emt 0:00:04]} Kf4 {[%emt 0:00:12]} 76. Bb7 {[%emt 0:00:10]} Bg3 {[%emt 0:00:10]} 77. Bc6 {[%emt 0:03:41]} 1/2-1/2

[Event "Romanian-ch Youth Open U10 2024"]
[Site "Eforie Nord"]
[Date "2024.04.18"]
[Round "8.1"]
[White "Varabiescu, Petru"]
[Black "Larion, Iustin"]
[Result "0-1"]
[ECO "B10"]
[WhiteElo "1791"]
[BlackElo "1743"]
[Annotator "NA RC COMBH"]
[PlyCount "66"]
[EventDate "2024.04.10"]
[EventType "swiss"]
[EventCountry "ROU"]
[SourceTitle "playchess.com"]
[Source "ChessBase"]
[SourceQuality "1"]
[TimeControl "5400+30"]

1. e4 {[%emt 0:00:04]} c6 {[%emt 0:00:07]} 2. Nf3 {[%emt 0:00:09]} d5 {[%emt 0:01:09]} 3. exd5 {[%emt 0:00:07]} cxd5 {[%emt 0:00:10]} 4. Ne5 {[%emt 0:00:10]} Nc6 {[%emt 0:09:26]} 5. Bb5 {[%emt 0:00:17]} Bd7 {[%emt 0:02:49]} 6. Nxd7 {[%emt 0:00:07]} Qxd7 {[%emt 0:00:10]} 7. d4 {[%emt 0:00:05]} Nf6 {[%emt 0:01:41]} 8. c3 {[%emt 0:01:22]} e6 {[%emt 0:02:44]} 9. Bf4 {[%emt 0:00:39]} Bd6 {[%emt 0:00:20]} 10. Bxd6 {[%emt 0:00:06]} Qxd6 {[%emt 0:00:10]} 11. O-O {[%emt 0:00:27]} O-O {[%emt 0:00:31]} 12. Nd2 {[%emt 0:04:49]} a6 {[%emt 0:05:48]} 13. Ba4 {[%emt 0:07:54]} b5 {[%emt 0:01:34]} 14. Bc2 {[%emt 0:00:20]} b4 {[%emt 0:05:57]} 15. f4 {[%emt 0:07:31]} bxc3 {[%emt 0:01:22]} 16. bxc3 {[%emt 0:00:09]} Ne7 {[%emt 0:06:52]} 17. g4 {[%emt 0:33:32]} Rac8 {[%emt 0:05:40]} 18. g5 {[%emt 0:03:06]} Nd7 {[%emt 0:00:47]} 19. Rf3 {[%emt 0:14:23]} g6 {[%emt 0:03:31]} 20. Qe1 {[%emt 0:03:34]} Nf5 {[%emt 0:08:30]} 21. Bxf5 {[%emt 0:04:18]} exf5 {[%emt 0:00:13]} 22. Qh4 {[%emt 0:00:14]} Rfe8 {[%emt 0:01:05]} 23. Rh3 {[%emt 0:02:54]} Nf8 {[%emt 0:00:07]} 24. Nb3 {[%emt 0:07:06]} Re2 {[%emt 0:04:36]} 25. Nc5 {[%emt 0:04:01]} Rce8 {[%emt 0:09:12]} 26. Nd3 {[%emt 0:04:15]} R8e3 {[%emt 0:02:42]} 27. Ne5 {[%emt 0:01:07]} Qc7 {[%emt 0:03:59]} 28. Rxe3 {[%emt 0:00:57]} Rxe3 {[%emt 0:00:02]} 29. c4 {[%emt 0:00:35]} dxc4 {[%emt 0:00:59]} 30. Rc1 {[%emt 0:00:13]} Qb7 {[%emt 0:02:42]} 31. Nxc4 {[%emt 0:00:34]} Re2 {[%emt 0:00:36]} 32. Qg3 {[%emt 0:00:38]} Rc2 {[%emt 0:00:52]} 33. Qe3 {[%emt 0:00:39]} Qg2# {[%emt 0:20:37]} 0-1

[Event "Romanian-ch Youth Open U10 2024"]
[Site "Eforie Nord"]
[Date "2024.04.18"]
[Round "8.2"]
[White "Mistrekov, Dobrynia"]
[Black "Kovacs, Balazs"]
[Result "0-1"]
[ECO "C47"]
[WhiteElo "1562"]
[BlackElo "1866"]
[Annotator "NA RC COMBH"]
[PlyCount "120"]
[EventDate "2024.04.10"]
[EventType "swiss"]
[EventCountry "ROU"]
[SourceTitle "playchess.com"]
[Source "ChessBase"]
[SourceQuality "1"]
[TimeControl "5400+30"]

1. e4 {[%emt 0:00:12]} e5 {[%emt 0:00:14]} 2. Nf3 {[%emt 0:00:38]} Nc6 {[%emt 0:00:06]} 3. d4 {[%emt 0:00:15]} exd4 {[%emt 0:00:05]} 4. Nxd4 {[%emt 0:00:50]} Nf6 {[%emt 0:00:10]} 5. Nc3 {[%emt 0:00:26]} Bb4 {[%emt 0:00:24]} 6. Nxc6 {[%emt 0:02:16]} bxc6 {[%emt 0:00:43]} 7. Bd3 {[%emt 0:02:05]} d5 {[%emt 0:00:36]} 8. exd5 {[%emt 0:01:08]} O-O {[%emt 0:00:40]} 9. O-O {[%emt 0:00:21]} Qd6 {[%emt 0:08:54]} 10. Bg5 {[%emt 0:03:28]} Bg4 {[%emt 0:04:01]} 11. f3 {[%emt 0:00:54]} Bxc3 {[%emt 0:06:10]} 12. bxc3 {[%emt 0:01:43]} Bh5 {[%emt 0:14:02]} 13. c4 {[%emt 0:09:34]} cxd5 {[%emt 0:04:11]} 14. cxd5 {[%emt 0:04:07]} Nxd5 {[%emt 0:07:35]} 15. Kh1 {[%emt 0:09:48]} h6 {[%emt 0:02:59]} 16. Bc1 {[%emt 0:04:42]} Qe5 {[%emt 0:12:50]} 17. Bd2 {[%emt 0:05:23]} Qd4 {[%emt 0:11:53]} 18. Be4 {[%emt 0:03:39]} Rad8 {[%emt 0:04:00]} 19. Bxh6 {[%emt 0:04:51]} Qf6 {[%emt 0:10:00]} 20. Bd2 {[%emt 0:03:21]} Ne3 {[%emt 0:01:36]} 21. Qc1 {[%emt 0:00:16]} Nxf1 {[%emt 0:01:02]} 22. Bg5 {[%emt 0:00:11]} Qe5 {[%emt 0:00:51]} 23. Bf4 {[%emt 0:01:55]} Qd4 {[%emt 0:01:04]} 24. c3 {[%emt 0:03:25]} Qf6 {[%emt 0:03:51]} 25. Bg5 {[%emt 0:00:38]} Qe5 {[%emt 0:00:19]} 26. Bf4 {[%emt 0:00:25]} Qc5 {[%emt 0:01:00]} 27. Qxf1 {[%emt 0:00:47]} f5 {[%emt 0:00:28]} 28. Bd3 {[%emt 0:00:59]} Qxc3 {[%emt 0:00:35]} 29. Bc4+ {[%emt 0:00:16]} Bf7 {[%emt 0:00:07]} 30. Bxf7+ {[%emt 0:00:17]} Rxf7 {[%emt 0:00:05]} 31. Rc1 {[%emt 0:00:11]} Qa5 {[%emt 0:00:56]} 32. Qc4 {[%emt 0:00:43]} Qd5 {[%emt 0:00:21]} 33. Qe2 {[%emt 0:01:32]} Qd3 {[%emt 0:00:51]} 34. Qe1 {[%emt 0:00:11]} Qa3 {[%emt 0:02:45]} 35. Qe2 {[%emt 0:01:02]} Rd4 {[%emt 0:01:21]} 36. Bg5 {[%emt 0:00:42]} Rfd7 {[%emt 0:00:49]} 37. Qe6+ {[%emt 0:00:08]} Kh8 {[%emt 0:00:18]} 38. Qe8+ {[%emt 0:00:55]} Kh7 {[%emt 0:00:03]} 39. Qh5+ {[%emt 0:00:19]} Kg8 {[%emt 0:00:04]} 40. Qe8+ {[%emt 0:00:39]} Qf8 {[%emt 0:00:04]} 41. Qe2 {[%emt 0:00:21]} Kf7 {[%emt 0:01:14]} 42. h3 {[%emt 0:00:54]} Qd6 {[%emt 0:00:13]} 43. Re1 {[%emt 0:04:56]} Kg6 {[%emt 0:00:35]} 44. f4 {[%emt 0:01:12]} Re4 {[%emt 0:00:13]} 45. Qf2 {[%emt 0:03:16]} Rxe1+ {[%emt 0:00:11]} 46. Qxe1 {[%emt 0:00:03]} Qd1 {[%emt 0:00:03]} 47. Qxd1 {[%emt 0:00:05]} Rxd1+ {[%emt 0:00:06]} 48. Kh2 {[%emt 0:02:08]} c5 {[%emt 0:00:37]} 49. Be7 {[%emt 0:00:25]} c4 {[%emt 0:00:07]} 50. Bb4 {[%emt 0:26:58]} Rc1 {[%emt 0:00:22]} 51. g4 {[%emt 0:00:00]} c3 {[%emt 0:00:24]} 52. h4 {[%emt 0:00:00]} fxg4 {[%emt 0:00:10]} 53. f5+ {[%emt 0:00:00]} Kxf5 {[%emt 0:00:09]} 54. h5 {[%emt 0:00:00]} c2 {[%emt 0:00:16]} 55. Ba3 {[%emt 0:00:00]} Ra1 {[%emt 0:00:13]} 56. h6 {[%emt 0:00:00]} gxh6 {[%emt 0:00:10]} 57. Bb2 {[%emt 0:00:00]} Rxa2 {[%emt 0:00:09]} 58. Bc1 {[%emt 0:00:00]} a5 {[%emt 0:00:10]} 59. Bxh6 {[%emt 0:00:00]} c1=Q+ {[%emt 0:00:07]} 60. Kg3 {[%emt 0:00:00]} Qe1# {[%emt 0:06:58]} 0-1

[Event "Romanian-ch Youth Open U10 2024"]
[Site "Eforie Nord"]
[Date "2024.04.18"]
[Round "8.3"]
[White "Cazacu, Iustin-Nicolas"]
[Black "Bostina, Vladimir-Ioan"]
[Result "1-0"]
[ECO "A04"]
[WhiteElo "1857"]
[BlackElo "1579"]
[Annotator "NA RC COMBH"]
[PlyCount "87"]
[EventDate "2024.04.10"]
[EventType "swiss"]
[EventCountry "ROU"]
[SourceTitle "playchess.com"]
[Source "ChessBase"]
[SourceQuality "1"]
[TimeControl "5400+30"]

1. Nf3 {[%emt 0:00:07]} c5 {[%emt 0:00:05]} 2. g3 {[%emt 0:00:12]} Nc6 {[%emt 0:00:09]} 3. Bg2 {[%emt 0:00:08]} g6 {[%emt 0:00:06]} 4. O-O {[%emt 0:01:25]} Bg7 {[%emt 0:00:02]} 5. d3 {[%emt 0:01:21]} d6 {[%emt 0:01:24]} 6. e4 {[%emt 0:01:59]} e5 {[%emt 0:09:19]} 7. a3 {[%emt 0:04:52]} Nge7 {[%emt 0:00:09]} 8. c3 {[%emt 0:03:27]} O-O {[%emt 0:00:07]} 9. b4 {[%emt 0:00:33]} Be6 {[%emt 0:00:08]} 10. Be3 {[%emt 0:03:11]} b6 {[%emt 0:03:01]} 11. b5 {[%emt 0:03:40]} Na5 {[%emt 0:05:32]} 12. c4 {[%emt 0:01:29]} a6 {[%emt 0:00:53]} 13. a4 {[%emt 0:01:23]} axb5 {[%emt 0:10:01]} 14. axb5 {[%emt 0:01:26]} Nb7 {[%emt 0:00:51]} 15. Nc3 {[%emt 0:08:26]} Rxa1 {[%emt 0:01:36]} 16. Qxa1 {[%emt 0:00:10]} Qa8 {[%emt 0:00:15]} 17. Qa6 {[%emt 0:01:43]} Qxa6 {[%emt 0:19:19]} 18. bxa6 {[%emt 0:00:10]} Na5 {[%emt 0:00:07]} 19. Nb5 {[%emt 0:00:15]} Ra8 {[%emt 0:00:23]} 20. Nc7 {[%emt 0:01:29]} Ra7 {[%emt 0:00:23]} 21. Nxe6 {[%emt 0:01:15]} fxe6 {[%emt 0:00:48]} 22. Bh3 {[%emt 0:00:56]} Rxa6 {[%emt 0:01:57]} 23. Bxe6+ {[%emt 0:01:16]} Kf8 {[%emt 0:00:42]} 24. Ng5 {[%emt 0:00:25]} h6 {[%emt 0:00:17]} 25. Nf7 {[%emt 0:00:34]} Nb7 {[%emt 0:00:44]} 26. Nxh6 {[%emt 0:01:03]} Ra3 {[%emt 0:01:23]} 27. Rb1 {[%emt 0:01:48]} Nd8 {[%emt 0:20:29]} 28. Rxb6 {[%emt 0:03:07]} Rxd3 {[%emt 0:00:12]} 29. Bg5 {[%emt 0:00:17]} Bxh6 {[%emt 0:01:37]} 30. Bxh6+ {[%emt 0:00:10]} Ke8 {[%emt 0:00:13]} 31. Bd5 {[%emt 0:02:54]} Nxd5 {[%emt 0:01:09]} 32. cxd5 {[%emt 0:00:45]} c4 {[%emt 0:02:34]} 33. Rxd6 {[%emt 0:12:38]} Rd1+ {[%emt 0:02:37]} 34. Kg2 {[%emt 0:00:13]} Nf7 {[%emt 0:06:51]} 35. Re6+ {[%emt 0:01:45]} Kd8 {[%emt 0:00:56]} 36. Be3 {[%emt 0:00:26]} Rd3 {[%emt 0:10:36]} 37. Rc6 {[%emt 0:00:21]} Rc3 {[%emt 0:00:04]} 38. Kf1 {[%emt 0:03:31]} Kd7 {[%emt 0:00:18]} 39. Bd2 {[%emt 0:03:03]} Rc2 {[%emt 0:00:44]} 40. Ke2 {[%emt 0:01:15]} Nd8 {[%emt 0:00:15]} 41. Kd1 {[%emt 0:00:09]} Rxd2+ {[%emt 0:01:59]} 42. Kxd2 {[%emt 0:00:05]} Nxc6 {[%emt 0:00:10]} 43. dxc6+ {[%emt 0:00:03]} Kxc6 {[%emt 0:00:07]} 44. Kc3 {[%emt 0:00:03]} 1-0